fUST/lending_fUST_20250129
["ID","MTS","AMOUNT","RATE_DAILY","PERIOD"]
[350795424,1738133457653,-500.0,0.0001726,2]
[350795425,1738133457663,-500.0,0.0001726,2]
[350795426,1738133457672,-500.0,0.0001726,2]
[350795427,1738133457682,-500.0,0.0001726,2]
[350795428,1738133457690,-500.0,0.0001726,2]
[350795429,1738133457699,-500.0,0.0001726,2]
[350795430,1738133457708,-500.0,0.0001726,2]
[350795431,1738133457718,-500.0,0.0001726,2]
[350795432,1738133457726,-500.0,0.0001726,2]
[350795433,1738133457736,-500.0,0.0001726,2]
[350795434,1738133457746,-500.0,0.0001726,2]
[350795435,1738133457755,-500.0,0.0001726,2]
[350795436,1738133457764,-500.0,0.0001726,2]
[350795437,1738133457773,-500.0,0.0001726,2]
[350795438,1738133457783,-500.0,0.0001726,2]
[350795439,1738133457792,-500.0,0.0001726,2]
[350795440,1738133457801,-357.3774422,0.0001726,2]
[350795441,1738133457810,-500.0,0.0001726,2]
[350795442,1738133457820,-500.0,0.0001726,2]
[350795443,1738133457911,-500.0,0.0001726,2]
[350795444,1738133457921,-500.0,0.0001726,2]
[350795445,1738133457930,-500.0,0.0001726,2]
[350795446,1738133457940,-500.0,0.0001726,2]
[350795447,1738133457949,-500.0,0.0001726,2]
[350795448,1738133457960,-500.0,0.0001726,2]
[350795449,1738133457970,-500.0,0.0001726,2]
[350795450,1738133457980,-500.0,0.0001726,2]
[350795451,1738133457990,-500.0,0.0001726,2]
[350795452,1738133458001,-500.0,0.0001726,2]
[350795453,1738133458010,-500.0,0.0001726,2]
[350795454,1738133458020,-500.0,0.0001726,2]
[350795455,1738133458030,-500.0,0.0001726,2]
[350795456,1738133458039,-500.0,0.0001726,2]
[350795457,1738133458049,-500.0,0.0001726,2]
[350795458,1738133458058,-500.0,0.0001726,2]
[350795459,1738133458067,-500.0,0.0001726,2]
[350795460,1738133458076,-500.0,0.0001726,2]
[350795461,1738133458085,-323.52,0.0001726,2]
[350795462,1738133458094,-500.0,0.0001726,2]
[350795463,1738133458104,-500.0,0.0001726,2]
[350795464,1738133458113,-500.0,0.0001726,2]
[350795465,1738133458123,-500.0,0.0001726,2]
[350795466,1738133458132,-500.0,0.0001726,2]
[350795467,1738133458142,-500.0,0.0001726,2]
[350795468,1738133458151,-1221.73,0.0001726,2]
[350795469,1738133458162,-6304.24,0.0001726,2]
[350795470,1738133458172,-151.0,0.0001726,2]
[350795471,1738133458181,-229.36,0.0001726,2]
[350795472,1738133458190,-500.0,0.0001726,2]
[350795473,1738133458200,-500.0,0.0001726,2]
[350795474,1738133458209,-638.76,0.0001726,2]
[350795475,1738133458218,-18071.32,0.0001726,2]
[350795476,1738133458228,-533.53,0.0001726,2]
[350795477,1738133458237,-500.0,0.0001726,2]
[350795478,1738133458247,-916.95,0.0001726,2]
[350795479,1738133458257,-1079.33,0.0001726,2]
[350795480,1738133458266,-531.81,0.0001726,2]
[350795481,1738133458276,-503.29,0.0001726,2]
[350795482,1738133458285,-1302.43,0.0001726,2]
[350795483,1738133458296,-500.0,0.0001726,2]
[350795484,1738133458306,-500.0,0.0001726,2]
[350795485,1738133458315,-2126.61,0.0001726,2]
[350795486,1738133458325,-192.595445,0.0001726,2]
[350795487,1738133458336,-192.595445,0.0001726,2]
[350795488,1738133458345,-500.0,0.0001726,2]
[350795489,1738133458354,-500.0,0.0001726,2]
[350795490,1738133458364,-500.0,0.0001726,2]
[350795491,1738133458374,-500.0,0.0001726,2]
[350795492,1738133458383,-159.80207944,0.0001726,2]
[350795493,1738133458392,-651.31,0.0001726,2]
[350795494,1738133458401,-1232.4,0.0001726,2]
[350795495,1738133458411,-1257.1,0.0001726,2]
[350795496,1738133458420,-500.0,0.0001726,2]
[350795497,1738133458430,-161.38,0.0001726,2]
[350795498,1738133458439,-500.0,0.0001726,2]
[350795499,1738133458449,-559.01,0.0001726,2]
[350795500,1738133458458,-564.66,0.0001726,2]
[350795501,1738133458467,-654.22,0.0001726,2]
[350795502,1738133458476,-572.28,0.0001726,2]
[350795503,1738133458486,-530.13,0.0001726,2]
[350795504,1738133458496,-500.0,0.0001726,2]
[350795505,1738133458506,-500.0,0.0001726,2]
[350795506,1738133458516,-500.0,0.0001726,2]
[350795507,1738133458525,-500.0,0.0001726,2]
[350795508,1738133458535,-5790.53,0.0001726,2]
[350795509,1738133458544,-763.84,0.0001726,2]
[350795510,1738133458554,-648.81,0.0001726,2]
[350795511,1738133458565,-500.0,0.0001726,2]
[350795512,1738133458575,-1970.39,0.0001726,2]
[350795513,1738133458584,-158.499103,0.0001726,2]
[350795514,1738133458593,-500.0,0.0001726,2]
[350795515,1738133458603,-158.49911,0.0001726,2]
[350795516,1738133458613,-500.0,0.0001726,2]
[350795517,1738133458622,-206.61,0.0001726,2]
[350795518,1738133458632,-500.0,0.0001726,2]
[350795519,1738133458642,-500.0,0.0001726,2]
[350795520,1738133458652,-500.0,0.0001726,2]
[350795521,1738133458661,-500.0,0.0001726,2]
[350795522,1738133458671,-3415.39,0.0001726,2]
[350795523,1738133458681,-223.536304,0.0001726,2]
[350795524,1738133458691,-500.0,0.0001726,2]
[350795525,1738133458701,-500.0,0.0001726,2]
[350795526,1738133458711,-151.0,0.0001726,2]
[350795527,1738133458721,-1484.33,0.0001726,2]
[350795528,1738133458731,-500.0,0.0001726,2]
[350795529,1738133458742,-151.0,0.000173,2]
[350795530,1738133458752,-222.860319,0.000173,2]
[350795531,1738133458762,-1000.0,0.00017321,2]
[350795532,1738133458771,-156.421823,0.00017397,2]
[350795533,1738133458781,-500.0,0.00017397,2]
[350795534,1738133458790,-500.0,0.00017397,2]
[350795535,1738133458800,-500.0,0.00017397,2]
[350795536,1738133458810,-500.0,0.00017397,2]
[350795537,1738133458819,-500.0,0.00017397,2]
[350795538,1738133458828,-447.18,0.00017397,2]
[350795539,1738133458838,-500.0,0.00017397,2]
[350795540,1738133458848,-500.0,0.00017397,2]
[350795541,1738133458857,-378.18,0.00017397,2]
[350795542,1738133458867,-500.0,0.00017397,2]
[350795543,1738133458877,-500.0,0.00017397,2]
[350795544,1738133458886,-500.0,0.00017397,2]
[350795545,1738133458896,-500.0,0.00017397,2]
[350795546,1738133458905,-500.0,0.00017397,2]
[350795547,1738133458915,-500.0,0.00017397,2]
[350795548,1738133458925,-500.0,0.00017397,2]
[350795549,1738133458935,-500.0,0.00017397,2]
[350795550,1738133458944,-500.0,0.00017397,2]
[350795551,1738133458954,-500.0,0.00017397,2]
[350795552,1738133458964,-500.0,0.00017397,2]
[350795553,1738133458974,-500.0,0.00017397,2]
[350795554,1738133458983,-500.0,0.00017397,2]
[350795555,1738133458996,-500.0,0.00017397,2]
[350795556,1738133459006,-500.0,0.00017397,2]
[350795557,1738133459015,-500.0,0.00017397,2]
[350795558,1738133459025,-500.0,0.00017397,2]
[350795559,1738133459035,-500.0,0.00017397,2]
[350795560,1738133459044,-500.0,0.00017397,2]
[350795561,1738133459053,-500.0,0.00017397,2]
[350795562,1738133459063,-500.0,0.00017397,2]
[350795563,1738133459072,-500.0,0.00017397,2]
[350795564,1738133459082,-500.0,0.00017397,2]
[350795565,1738133459093,-500.0,0.00017397,2]
[350795566,1738133459103,-500.0,0.00017397,2]
[350795567,1738133459113,-504.86,0.00017397,2]
[350795568,1738133459123,-339.111246,0.00017397,2]
[350795569,1738133459134,-500.0,0.00017397,2]
[350795570,1738133459143,-339.111246,0.00017397,2]
[350795571,1738133459153,-500.0,0.00017397,2]
[350795572,1738133459162,-500.0,0.00017397,2]
[350795573,1738133459173,-500.0,0.00017397,2]
[350795574,1738133459187,-500.0,0.00017397,2]
[350795575,1738133459196,-590.440635,0.00017397,2]
[350795576,1738133459206,-590.440635,0.00017397,2]
[350795577,1738133459216,-500.0,0.00017397,2]
[350795578,1738133459225,-511.05316783,0.00017397,2]
[350795579,1738133459235,-182.284592,0.00017397,2]
[350795580,1738133459246,-500.0,0.00017397,2]
[350795581,1738133459255,-182.284592,0.00017397,2]
[350795582,1738133459264,-500.0,0.00017397,2]
[350795583,1738133459274,-646.901412,0.00017397,2]
[350795584,1738133459283,-646.901412,0.00017397,2]
[350795585,1738133459295,-500.0,0.00017397,2]
[350795586,1738133459306,-1221.73,0.00017397,2]
[350795587,1738133459315,-6304.24,0.00017397,2]
[350795588,1738133459325,-500.0,0.00017397,2]
[350795589,1738133459334,-500.0,0.00017397,2]
[350795590,1738133459343,-638.76,0.00017397,2]
[350795591,1738133459353,-18071.32,0.00017397,2]
[350795592,1738133459362,-533.53,0.00017397,2]
[350795593,1738133459372,-500.0,0.00017397,2]
[350795594,1738133459381,-916.95,0.00017397,2]
[350795595,1738133459391,-1079.33,0.00017397,2]
[350795596,1738133459400,-531.81,0.00017397,2]
[350795597,1738133459410,-503.29,0.00017397,2]
[350795598,1738133459419,-1302.43,0.00017397,2]
[350795599,1738133459428,-452.42018988,0.00017397,2]
[350795600,1738133459438,-500.0,0.00017397,2]
[350795601,1738133459447,-2126.61,0.00017397,2]
[350795602,1738133459457,-192.595445,0.00017397,2]
[350795603,1738133459466,-192.5954365,0.00017397,2]
[350795604,1738133459475,-500.0,0.00017397,2]
[350795605,1738133459484,-500.0,0.00017397,2]
[350795606,1738133459493,-500.0,0.00017397,2]
[350795607,1738133459503,-651.31,0.00017397,2]
[350795608,1738133459512,-151.0,0.00017397,2]
[350795609,1738133459521,-1232.4,0.00017397,2]
[350795610,1738133459530,-1257.1,0.00017397,2]
[350795611,1738133459541,-500.0,0.00017397,2]
[350795612,1738133459551,-500.0,0.00017397,2]
[350795613,1738133459561,-559.01,0.00017397,2]
[350795614,1738133459572,-564.66,0.00017397,2]
[350795615,1738133459582,-654.22,0.00017397,2]
[350795616,1738133459592,-572.28,0.00017397,2]
[350795617,1738133459601,-530.13,0.00017397,2]
[350795618,1738133459610,-500.0,0.00017397,2]
[350795619,1738133459619,-195.333392,0.00017397,2]
[350795620,1738133459629,-195.333385,0.00017397,2]
[350795621,1738133459717,-500.0,0.00017397,2]
[350795622,1738133459728,-175.13658105,0.00017397,2]
[350795623,1738133459737,-154.28786801,0.00017397,2]
[350795624,1738133459747,-5790.53,0.00017397,2]
[350795625,1738133459756,-763.84,0.00017397,2]
[350795626,1738133459766,-648.81,0.00017397,2]
[350795627,1738133459776,-500.0,0.00017397,2]
[350795628,1738133459787,-1970.39,0.00017397,2]
[350795629,1738133459796,-500.0,0.00017397,2]
[350795630,1738133459807,-500.0,0.00017397,2]
[350795631,1738133459818,-500.0,0.00017397,2]
[350795632,1738133459828,-366.96522993,0.00017397,2]
[350795633,1738133459839,-500.0,0.00017397,2]
[350795634,1738133459857,-500.0,0.00017397,2]
[350795635,1738133459866,-3415.39,0.00017397,2]
[350795636,1738133459877,-500.0,0.00017397,2]
[350795637,1738133459886,-500.0,0.00017397,2]
[350795638,1738133459895,-1484.33,0.00017397,2]
[350795639,1738133459904,-500.0,0.00017397,2]
[350795640,1738133459915,-154.3518878,0.00017397,2]
[350795641,1738133459925,-154.3518878,0.00017397,2]
[350795642,1738133459935,-215.4944753,0.00017397,2]
[350795643,1738133459944,-306.0,0.00017397,2]
[350795644,1738133459954,-153.0,0.00017397,2]
[350795645,1738133459963,-214.8280613,0.00017397,2]
[350795646,1738133459972,-153.0,0.00017397,2]
[350795647,1738133459982,-153.0,0.00017397,2]
[350795648,1738133459991,-500.0,0.00017534,2]
[350795649,1738133460000,-500.0,0.00017534,2]
[350795650,1738133460010,-500.0,0.00017534,2]
[350795651,1738133460019,-500.0,0.00017534,2]
[350795652,1738133460029,-500.0,0.00017534,2]
[350795653,1738133460039,-500.0,0.00017534,2]
[350795654,1738133460048,-500.0,0.00017534,2]
[350795655,1738133460058,-500.0,0.00017534,2]
[350795656,1738133460067,-500.0,0.00017534,2]
[350795657,1738133460077,-500.0,0.00017534,2]
[350795658,1738133460086,-230.1,0.00017534,2]
[350795659,1738133460096,-500.0,0.00017534,2]
[350795660,1738133460105,-500.0,0.00017534,2]
[350795661,1738133460115,-500.0,0.00017534,2]
[350795662,1738133460124,-500.0,0.00017534,2]
[350795663,1738133460134,-500.0,0.00017534,2]
[350795664,1738133460144,-500.0,0.00017534,2]
[350795665,1738133460153,-500.0,0.00017534,2]
[350795666,1738133460162,-500.0,0.00017534,2]
[350795667,1738133460172,-500.0,0.00017534,2]
[350795668,1738133460182,-500.0,0.00017534,2]
[350795669,1738133460192,-500.0,0.00017534,2]
[350795670,1738133460202,-249.1,0.00017534,2]
[350795671,1738133460211,-500.0,0.00017534,2]
[350795672,1738133460222,-500.0,0.00017534,2]
[350795673,1738133460231,-500.0,0.00017534,2]
[350795674,1738133460241,-500.0,0.00017534,2]
[350795675,1738133460251,-500.0,0.00017534,2]
[350795676,1738133460261,-500.0,0.00017534,2]
[350795677,1738133460271,-500.0,0.00017534,2]
[350795678,1738133460281,-590.440635,0.00017534,2]
[350795679,1738133460291,-590.440635,0.00017534,2]
[350795680,1738133460304,-500.0,0.00017534,2]
[350795681,1738133460314,-182.284592,0.00017534,2]
[350795682,1738133460323,-500.0,0.00017534,2]
[350795683,1738133460334,-182.284592,0.00017534,2]
[350795684,1738133460344,-500.0,0.00017534,2]
[350795685,1738133460353,-646.901412,0.00017534,2]
[350795686,1738133460363,-646.901412,0.00017534,2]
[350795687,1738133460374,-501.8853671,0.00017534,2]
[350795688,1738133460384,-1221.73,0.00017534,2]
[350795689,1738133460394,-6304.24,0.00017534,2]
[350795690,1738133460404,-203.834139,0.00017534,2]
[350795691,1738133460413,-500.0,0.00017534,2]
[350795692,1738133460422,-500.0,0.00017534,2]
[350795693,1738133460432,-638.76,0.00017534,2]
[350795694,1738133460441,-18071.32,0.00017534,2]
[350795695,1738133460450,-533.53,0.00017534,2]
[350795696,1738133460460,-500.0,0.00017534,2]
[350795697,1738133460469,-916.95,0.00017534,2]
[350795698,1738133460479,-1079.33,0.00017534,2]
[350795699,1738133460488,-531.81,0.00017534,2]
[350795700,1738133460498,-503.29,0.00017534,2]
[350795701,1738133460507,-1302.43,0.00017534,2]
[350795702,1738133460516,-500.0,0.00017534,2]
[350795703,1738133460526,-2126.61,0.00017534,2]
[350795704,1738133460535,-500.0,0.00017534,2]
[350795705,1738133460545,-500.0,0.00017534,2]
[350795706,1738133460554,-651.31,0.00017534,2]
[350795707,1738133460564,-1232.4,0.00017534,2]
[350795708,1738133460574,-1257.1,0.00017534,2]
[350795709,1738133460583,-500.0,0.00017534,2]
[350795710,1738133460593,-500.0,0.00017534,2]
[350795711,1738133460606,-559.01,0.00017534,2]
[350795712,1738133460618,-564.66,0.00017534,2]
[350795713,1738133460637,-654.22,0.00017534,2]
[350795714,1738133460647,-572.28,0.00017534,2]
[350795715,1738133460656,-530.13,0.00017534,2]
[350795716,1738133460666,-500.0,0.00017534,2]
[350795717,1738133460676,-500.0,0.00017534,2]
[350795718,1738133460686,-5790.53,0.00017534,2]
[350795719,1738133460696,-763.84,0.00017534,2]
[350795720,1738133460705,-648.81,0.00017534,2]
[350795721,1738133460715,-500.0,0.00017534,2]
[350795722,1738133460724,-1970.39,0.00017534,2]
[350795723,1738133460734,-500.0,0.00017534,2]
[350795724,1738133460745,-432.47,0.00017534,2]
[350795725,1738133460755,-500.0,0.00017534,2]
[350795726,1738133460765,-500.0,0.00017534,2]
[350795727,1738133460775,-3415.39,0.00017534,2]
[350795728,1738133460784,-500.0,0.00017534,2]
[350795729,1738133460793,-500.0,0.00017534,2]
[350795730,1738133460803,-1484.33,0.00017534,2]
[350795731,1738133460812,-354.285986,0.00017534,2]
[350795732,1738133460821,-354.285986,0.00017534,2]
[350795733,1738133460831,-354.285986,0.00017534,2]
[350795734,1738133460842,-354.285986,0.00017534,2]
[350795735,1738133460852,-354.285986,0.00017534,2]
[350795736,1738133460861,-651.9167999,0.00017534,2]
[350795737,1738133460871,-154.3518878,0.00017534,2]
[350795738,1738133460880,-215.4944753,0.00017534,2]
[350795739,1738133460890,-215.4944753,0.00017534,2]
[350795740,1738133460900,-171.54797451,0.0001757,2]
[350795741,1738133460910,-339.111246,0.00017589,2]
[350795742,1738133460919,-339.111246,0.00017589,2]
[350795743,1738133460929,-500.0,0.00017671,2]
[350795744,1738133460939,-373.5,0.00017671,2]
[350795745,1738133460948,-500.0,0.00017671,2]
[350795746,1738133460958,-500.0,0.00017671,2]
[350795747,1738133460968,-563.85,0.00017671,2]
[350795748,1738133460978,-500.0,0.00017671,2]
[350795749,1738133460987,-500.0,0.00017671,2]
[350795750,1738133460999,-274.75,0.00017671,2]
[350795751,1738133461009,-500.0,0.00017671,2]
[350795752,1738133461018,-500.0,0.00017671,2]
[350795753,1738133461028,-500.0,0.00017671,2]
[350795754,1738133461037,-500.0,0.00017671,2]
[350795755,1738133461047,-500.0,0.00017671,2]
[350795756,1738133461056,-500.0,0.00017671,2]
[350795757,1738133461066,-500.0,0.00017671,2]
[350795758,1738133461076,-481.64,0.00017671,2]
[350795759,1738133461086,-481.66,0.00017671,2]
[350795760,1738133461095,-500.0,0.00017671,2]
[350795761,1738133461105,-500.0,0.00017671,2]
[350795762,1738133461115,-500.0,0.00017671,2]
[350795763,1738133461125,-500.0,0.00017671,2]
[350795764,1738133461134,-500.0,0.00017671,2]
[350795765,1738133461144,-500.0,0.00017671,2]
[350795766,1738133461153,-500.0,0.00017671,2]
[350795767,1738133461163,-500.0,0.00017671,2]
[350795768,1738133461172,-500.0,0.00017671,2]
[350795769,1738133461182,-500.0,0.00017671,2]
[350795770,1738133461192,-500.0,0.00017671,2]
[350795771,1738133461202,-500.0,0.00017671,2]
[350795772,1738133461211,-1221.73,0.00017671,2]
[350795773,1738133461221,-6304.24,0.00017671,2]
[350795774,1738133461230,-500.0,0.00017671,2]
[350795775,1738133461239,-500.0,0.00017671,2]
[350795776,1738133461250,-638.76,0.00017671,2]
[350795777,1738133461260,-18071.32,0.00017671,2]
[350795778,1738133461270,-533.53,0.00017671,2]
[350795779,1738133461280,-500.0,0.00017671,2]
[350795780,1738133461289,-916.95,0.00017671,2]
[350795781,1738133461302,-1079.33,0.00017671,2]
[350795782,1738133461311,-531.81,0.00017671,2]
[350795783,1738133461321,-503.29,0.00017671,2]
[350795784,1738133461409,-1302.43,0.00017671,2]
[350795785,1738133461419,-500.0,0.00017671,2]
[350795786,1738133461429,-2126.61,0.00017671,2]
[350795787,1738133461439,-500.0,0.00017671,2]
[350795788,1738133461448,-500.0,0.00017671,2]
[350795789,1738133461457,-651.31,0.00017671,2]
[350795790,1738133461467,-1232.4,0.00017671,2]
[350795791,1738133461477,-1257.1,0.00017671,2]
[350795792,1738133461486,-500.0,0.00017671,2]
[350795793,1738133461497,-500.0,0.00017671,2]
[350795794,1738133461507,-559.01,0.00017671,2]
[350795795,1738133461516,-564.66,0.00017671,2]
[350795796,1738133461526,-654.22,0.00017671,2]
[350795797,1738133461535,-572.28,0.00017671,2]
[350795798,1738133461544,-530.13,0.00017671,2]
[350795799,1738133461554,-500.0,0.00017671,2]
[350795800,1738133461563,-500.0,0.00017671,2]
[350795801,1738133461573,-5790.53,0.00017671,2]
[350795802,1738133461582,-763.84,0.00017671,2]
[350795803,1738133461592,-648.81,0.00017671,2]
[350795804,1738133461601,-500.0,0.00017671,2]
[350795805,1738133461610,-1970.39,0.00017671,2]
[350795806,1738133461620,-500.0,0.00017671,2]
[350795807,1738133461629,-500.0,0.00017671,2]
[350795808,1738133461639,-500.0,0.00017671,2]
[350795809,1738133461649,-3415.39,0.00017671,2]
[350795810,1738133461660,-500.0,0.00017671,2]
[350795811,1738133461669,-365.1,0.00017671,2]
[350795812,1738133461679,-1484.33,0.00017671,2]
[350795813,1738133461689,-4944.01095542,0.00017763,2]
[350795814,1738133461699,-151.0,0.000178,2]
[350795815,1738133461710,-151.0,0.00017808,2]
[350795816,1738133461719,-500.0,0.00017808,2]
[350795817,1738133461729,-500.0,0.00017808,2]
[350795818,1738133461740,-500.0,0.00017808,2]
[350795819,1738133461751,-500.0,0.00017808,2]
[350795820,1738133461760,-500.0,0.00017808,2]
[350795821,1738133461779,-500.0,0.00017808,2]
[350795822,1738133461789,-500.0,0.00017808,2]
[350795823,1738133461798,-500.0,0.00017808,2]
[350795824,1738133461808,-500.0,0.00017808,2]
[350795825,1738133461817,-500.0,0.00017808,2]
[350795826,1738133461827,-500.0,0.00017808,2]
[350795827,1738133461836,-500.0,0.00017808,2]
[350795828,1738133461846,-500.0,0.00017808,2]
[350795829,1738133461855,-588.58,0.00017808,2]
[350795830,1738133461864,-500.0,0.00017808,2]
[350795831,1738133461874,-182.90557801,0.00017808,2]
[350795832,1738133461884,-500.0,0.00017808,2]
[350795833,1738133461893,-500.0,0.00017808,2]
[350795834,1738133461902,-590.440635,0.00017808,2]
[350795835,1738133461912,-590.44063,0.00017808,2]
[350795836,1738133461922,-500.0,0.00017808,2]
[350795837,1738133461931,-182.284592,0.00017808,2]
[350795838,1738133461941,-500.0,0.00017808,2]
[350795839,1738133461950,-182.284595,0.00017808,2]
[350795840,1738133461960,-500.0,0.00017808,2]
[350795841,1738133461970,-646.901412,0.00017808,2]
[350795842,1738133461979,-646.90141118,0.00017808,2]
[350795843,1738133461989,-1221.73,0.00017808,2]
[350795844,1738133462000,-6304.24,0.00017808,2]
[350795845,1738133462009,-500.0,0.00017808,2]
[350795846,1738133462019,-500.0,0.00017808,2]
[350795847,1738133462029,-638.76,0.00017808,2]
[350795848,1738133462038,-18071.32,0.00017808,2]
[350795849,1738133462048,-533.53,0.00017808,2]
[350795850,1738133462057,-500.0,0.00017808,2]
[350795851,1738133462067,-916.95,0.00017808,2]
[350795852,1738133462077,-1079.33,0.00017808,2]
[350795853,1738133462087,-531.81,0.00017808,2]
[350795854,1738133462096,-503.29,0.00017808,2]
[350795855,1738133462105,-1302.43,0.00017808,2]
[350795856,1738133462115,-500.0,0.00017808,2]
[350795857,1738133462125,-2126.61,0.00017808,2]
[350795858,1738133462134,-500.0,0.00017808,2]
[350795859,1738133462144,-500.0,0.00017808,2]
[350795860,1738133462153,-651.31,0.00017808,2]
[350795861,1738133462163,-1232.4,0.00017808,2]
[350795862,1738133462172,-1257.1,0.00017808,2]
[350795863,1738133462182,-189.24,0.00017808,2]
[350795864,1738133462191,-448.96227878,0.00017808,2]
[350795865,1738133462201,-559.01,0.00017808,2]
[350795866,1738133462211,-564.66,0.00017808,2]
[350795867,1738133462219,-654.22,0.00017808,2]
[350795868,1738133462228,-572.28,0.00017808,2]
[350795869,1738133462238,-530.13,0.00017808,2]
[350795870,1738133462249,-500.0,0.00017808,2]
[350795871,1738133462258,-500.0,0.00017808,2]
[350795872,1738133462267,-5790.53,0.00017808,2]
[350795873,1738133462276,-763.84,0.00017808,2]
[350795874,1738133462286,-648.81,0.00017808,2]
[350795875,1738133462296,-500.0,0.00017808,2]
[350795876,1738133462306,-1970.39,0.00017808,2]
[350795877,1738133462316,-500.0,0.00017808,2]
[350795878,1738133462326,-500.0,0.00017808,2]
[350795879,1738133462336,-500.0,0.00017808,2]
[350795880,1738133462346,-3415.39,0.00017808,2]
[350795881,1738133462356,-500.0,0.00017808,2]
[350795882,1738133462365,-150.0,0.00017882,2]
[350795883,1738133462377,-395.0,0.00017882,2]
[350795884,1738133462386,-500.0,0.00017945,2]
[350795885,1738133462396,-500.0,0.00017945,2]
[350795886,1738133462405,-500.0,0.00017945,2]
[350795887,1738133462414,-623.34376296,0.00017945,2]
[350795888,1738133462423,-500.0,0.00017945,2]
[350795889,1738133462432,-500.0,0.00017945,2]
[350795890,1738133462442,-536.42530235,0.00017945,2]
[350795891,1738133462451,-500.0,0.00017945,2]
[350795892,1738133462461,-500.0,0.00017945,2]
[350795893,1738133462472,-500.0,0.00017945,2]
[350795894,1738133462483,-500.0,0.00017945,2]
[350795895,1738133462492,-339.111246,0.00017945,2]
[350795896,1738133462502,-632.65451417,0.00017945,2]
[350795897,1738133462511,-339.11125317,0.00017945,2]
[350795898,1738133462521,-500.0,0.00017945,2]
[350795899,1738133462530,-500.0,0.00017945,2]
[350795900,1738133462539,-500.0,0.00017945,2]
[350795901,1738133462548,-500.0,0.00017945,2]
[350795902,1738133462558,-500.0,0.00017945,2]
[350795903,1738133462567,-1221.73,0.00017945,2]
[350795904,1738133462577,-6304.24,0.00017945,2]
[350795905,1738133462586,-500.0,0.00017945,2]
[350795906,1738133462596,-500.0,0.00017945,2]
[350795907,1738133462606,-638.76,0.00017945,2]
[350795908,1738133462615,-18071.32,0.00017945,2]
[350795909,1738133462624,-533.53,0.00017945,2]
[350795910,1738133462633,-500.0,0.00017945,2]
[350795911,1738133462642,-916.95,0.00017945,2]
[350795912,1738133462652,-1079.33,0.00017945,2]
[350795913,1738133462662,-531.81,0.00017945,2]
[350795914,1738133462672,-503.29,0.00017945,2]
[350795915,1738133462683,-1302.43,0.00017945,2]
[350795916,1738133462692,-500.0,0.00017945,2]
[350795917,1738133462702,-2126.61,0.00017945,2]
[350795918,1738133462711,-205.61010779,0.00017945,2]
[350795919,1738133462720,-500.0,0.00017945,2]
[350795920,1738133462730,-651.31,0.00017945,2]
[350795921,1738133462739,-1232.4,0.00017945,2]
[350795922,1738133462753,-1257.1,0.00017945,2]
[350795923,1738133462763,-559.01,0.00017945,2]